[Event "3rd FIDE WCCC Rapid U10 2019"]
[Site "Minsk"]
[Date "2019.08.16"]
[Round "1.1"]
[White "Samunenkov, Ihor"]
[Black "Sendi, David V"]
[Result "1-0"]
[ECO "D78"]
[WhiteElo "1964"]
[BlackElo "1159"]
[Annotator "NA"]
[PlyCount "131"]
[EventDate "2019.08.16"]
[EventType "swiss"]
[EventCountry "BLR"]
[SourceTitle "playchess.com"]
[Source "ChessBase"]
[SourceQuality "1"]
[TimeControl "600+5"]

1. d4 {[%emt 0:00:00]} d5 {[%emt 0:00:00]} 2. Nf3 {[%emt 0:00:01]} Nf6 {[%emt 0:00:00]} 3. g3 {[%emt 0:00:01]} c6 {[%emt 0:00:01]} 4. c4 {[%emt 0:00:05]} g6 {[%emt 0:00:02]} 5. Bg2 {[%emt 0:00:05]} Bg7 {[%emt 0:00:01]} 6. O-O {[%emt 0:00:11]} O-O {[%emt 0:00:03]} 7. Nc3 {[%emt 0:00:01]} Bf5 8. Nh4 {[%emt 0:01:35]} Be6 {[%emt 0:00:29]} 9. c5 {[%emt 0:00:37]} b6 {[%emt 0:00:18]} 10. cxb6 {[%emt 0:01:54]} axb6 {[%emt 0:00:07]} 11. b3 {[%emt 0:01:10]} Ne4 {[%emt 0:00:36]} 12. Bb2 {[%emt 0:00:49]} Nxc3 {[%emt 0:00:21]} 13. Bxc3 {[%emt 0:00:02]} c5 {[%emt 0:00:14]} 14. Nf3 {[%emt 0:00:19]} Nc6 {[%emt 0:00:08]} 15. Qd2 {[%emt 0:00:06]} cxd4 {[%emt 0:00:29]} 16. Nxd4 {[%emt 0:00:03]} Nxd4 {[%emt 0:00:21]} 17. Bxd4 {[%emt 0:00:03]} Rc8 {[%emt 0:00:25]} 18. Rfd1 {[%emt 0:00:54]} Bxd4 {[%emt 0:00:13]} 19. Qxd4 {[%emt 0:00:01]} Rc2 {[%emt 0:00:24]} 20. e4 {[%emt 0:00:40]} Qc7 {[%emt 0:00:47]} 21. exd5 {[%emt 0:00:03]} Bf5 {[%emt 0:00:15]} 22. g4 {[%emt 0:01:00]} Bd7 {[%emt 0:00:10]} 23. d6 {[%emt 0:00:23]} exd6 {[%emt 0:00:21]} 24. h3 {[%emt 0:00:38]} Rc8 {[%emt 0:01:23]} 25. Qxd6 {[%emt 0:00:11]} Qxd6 {[%emt 0:00:29]} 26. Rxd6 {[%emt 0:00:02]} Bc6 {[%emt 0:00:23]} 27. Bxc6 {[%emt 0:00:39]} R2xc6 {[%emt 0:00:08]} 28. Rd2 {[%emt 0:00:35]} Rc2 {[%emt 0:00:09]} 29. Rad1 {[%emt 0:00:02]} Kg7 {[%emt 0:00:20]} 30. Kg2 {[%emt 0:00:08]} b5 {[%emt 0:00:13]} 31. Rxc2 {[%emt 0:00:07]} Rxc2 {[%emt 0:00:01]} 32. Rd5 {[%emt 0:00:02]} Rxa2 {[%emt 0:00:29]} 33. Rxb5 {[%emt 0:00:01]} Rb2 {[%emt 0:00:02]} 34. Rb6 {[%emt 0:00:13]} h6 {[%emt 0:00:05]} 35. Kg3 {[%emt 0:00:02]} Kh7 {[%emt 0:00:13]} 36. Rb7 {[%emt 0:00:04]} Kg7 {[%emt 0:00:04]} 37. f3 {[%emt 0:00:11]} Kf6 {[%emt 0:00:06]} 38. Kf4 {[%emt 0:00:04]} Ke6 {[%emt 0:00:28]} 39. Ke3 {[%emt 0:00:06]} f5 {[%emt 0:00:24]} 40. Rb6+ {[%emt 0:00:03]} Kf7 {[%emt 0:00:04]} 41. gxf5 {[%emt 0:00:04]} gxf5 {[%emt 0:00:02]} 42. Kf4 {[%emt 0:00:00]} Kg7 {[%emt 0:00:39]} 43. Kxf5 {[%emt 0:00:03]} Kf7 {[%emt 0:00:15]} 44. Rb7+ {[%emt 0:00:05]} Ke8 {[%emt 0:00:24]} 45. f4 {[%emt 0:00:02]} Kf8 {[%emt 0:00:17]} 46. Kf6 {[%emt 0:00:10]} Ke8 {[%emt 0:00:03]} 47. f5 {[%emt 0:00:05]} Rh2 {[%emt 0:00:14]} 48. Rb8+ {[%emt 0:00:10]} Kd7 {[%emt 0:00:02]} 49. Kg7 {[%emt 0:00:02]} Rxh3 {[%emt 0:00:19]} 50. f6 {[%emt 0:00:06]} Rg3+ {[%emt 0:00:04]} 51. Kf8 {[%emt 0:00:09]} h5 {[%emt 0:00:29]} 52. Rb4 {[%emt 0:00:04]} Rg6 {[%emt 0:00:22]} 53. Kf7 {[%emt 0:00:05]} Rg3 {[%emt 0:00:08]} 54. Rd4+ {[%emt 0:00:03]} Kc8 {[%emt 0:00:08]} 55. b4 {[%emt 0:00:03]} Rg5 {[%emt 0:00:15]} 56. Kf8 {[%emt 0:00:04]} Rg6 {[%emt 0:00:04]} 57. f7 {[%emt 0:00:02]} h4 {[%emt 0:00:03]} 58. Ke7 {[%emt 0:00:06]} Rg7 {[%emt 0:00:01]} 59. Rxh4 {[%emt 0:00:03]} Kb7 {[%emt 0:00:01]} 60. Kf6 {[%emt 0:00:05]} Rxf7+ {[%emt 0:00:02]} 61. Kxf7 {[%emt 0:00:01]} Kc6 {[%emt 0:00:01]} 62. Ke6 {[%emt 0:00:02]} Kb5 {[%emt 0:00:00]} 63. Kd5 {[%emt 0:00:02]} Ka4 {[%emt 0:00:01]} 64. Kc4 {[%emt 0:00:04]} Ka3 {[%emt 0:00:01]} 65. Rh2 {[%emt 0:00:02]} Ka4 {[%emt 0:00:01]} 66. Ra2# {[%emt 0:00:01]} 1-0

[Event "3rd FIDE WCCC Rapid U10 2019"]
[Site "Minsk"]
[Date "2019.08.16"]
[Round "1.2"]
[White "Emelchenkov, Ivan"]
[Black "Toktomushev, Teimur"]
[Result "1/2-1/2"]
[ECO "B31"]
[WhiteElo "1406"]
[BlackElo "1977"]
[Annotator "NA"]
[PlyCount "187"]
[EventDate "2019.08.16"]
[EventType "swiss"]
[EventCountry "BLR"]
[SourceTitle "playchess.com"]
[Source "ChessBase"]
[SourceQuality "1"]
[TimeControl "600+5"]

1. e4 {[%emt 0:00:00]} c5 {[%emt 0:00:00]} 2. Nf3 {[%emt 0:00:00]} Nc6 {[%emt 0:00:03]} 3. Bb5 {[%emt 0:00:00]} g6 {[%emt 0:00:06]} 4. Bxc6 dxc6 {[%emt 0:00:01]} 5. d3 {[%emt 0:00:13]} Bg7 {[%emt 0:00:04]} 6. h3 {[%emt 0:00:10]} b6 {[%emt 0:00:38]} 7. a4 {[%emt 0:00:17]} a5 {[%emt 0:00:24]} 8. O-O {[%emt 0:00:19]} f6 {[%emt 0:00:09]} 9. Na3 {[%emt 0:00:13]} e5 {[%emt 0:00:29]} 10. Nc4 {[%emt 0:00:55]} Be6 {[%emt 0:00:13]} 11. Ne3 {[%emt 0:00:19]} Nh6 {[%emt 0:00:12]} 12. b3 {[%emt 0:00:14]} Nf7 {[%emt 0:00:12]} 13. Bb2 {[%emt 0:00:04]} O-O {[%emt 0:00:03]} 14. g4 {[%emt 0:02:03]} Qc7 {[%emt 0:00:21]} 15. Kh1 {[%emt 0:00:31]} Rae8 {[%emt 0:01:59]} 16. Rg1 {[%emt 0:00:25]} Bc8 {[%emt 0:00:28]} 17. Qe2 {[%emt 0:00:55]} Nd8 {[%emt 0:01:02]} 18. Rg3 {[%emt 0:02:22]} Ne6 {[%emt 0:00:19]} 19. Rag1 {[%emt 0:00:01]} Nf4 {[%emt 0:00:13]} 20. Qd1 {[%emt 0:00:11]} Kh8 {[%emt 0:00:38]} 21. Qf1 {[%emt 0:00:03]} Be6 {[%emt 0:01:14]} 22. g5 {[%emt 0:01:21]} f5 {[%emt 0:00:05]} 23. exf5 {[%emt 0:00:07]} Bxf5 {[%emt 0:00:36]} 24. Nxf5 {[%emt 0:00:14]} Rxf5 {[%emt 0:00:05]} 25. Nh4 {[%emt 0:00:08]} Rf7 {[%emt 0:00:07]} 26. Ng2 {[%emt 0:00:06]} Kg8 {[%emt 0:00:23]} 27. Re3 {[%emt 0:00:18]} Ref8 {[%emt 0:00:24]} 28. Rf3 {[%emt 0:00:43]} Qd7 {[%emt 0:00:32]} 29. Kh2 {[%emt 0:00:02]} Qd5 {[%emt 0:00:46]} 30. Qd1 {[%emt 0:00:10]} Nxg2 {[%emt 0:00:20]} 31. Rxf7 {[%emt 0:00:02]} Qxf7 {[%emt 0:00:03]} 32. Rxg2 {[%emt 0:00:02]} Qf4+ {[%emt 0:00:01]} 33. Kh1 {[%emt 0:00:02]} Qf5 {[%emt 0:00:18]} 34. Qg4 {[%emt 0:00:01]} Re8 {[%emt 0:00:10]} 35. Qxf5 {[%emt 0:00:04]} gxf5 {[%emt 0:00:01]} 36. g6 {[%emt 0:00:03]} h6 {[%emt 0:00:10]} 37. h4 {[%emt 0:00:02]} e4 {[%emt 0:00:06]} 38. Bxg7 {[%emt 0:00:02]} Kxg7 {[%emt 0:00:01]} 39. h5 {[%emt 0:00:17]} exd3 {[%emt 0:00:02]} 40. cxd3 {[%emt 0:00:01]} Re1+ {[%emt 0:00:05]} 41. Rg1 Re5 {[%emt 0:00:04]} 42. Kg2 {[%emt 0:00:22]} Rd5 {[%emt 0:00:03]} 43. Rd1 {[%emt 0:00:01]} f4 {[%emt 0:00:08]} 44. Kf3 {[%emt 0:00:01]} Rxh5 {[%emt 0:00:06]} 45. Kxf4 {[%emt 0:00:01]} Kxg6 {[%emt 0:00:01]} 46. Re1 {[%emt 0:00:04]} Rf5+ {[%emt 0:00:11]} 47. Kg3 {[%emt 0:00:01]} Kf6 {[%emt 0:00:04]} 48. Re8 {[%emt 0:00:01]} Rd5 {[%emt 0:00:04]} 49. Re3 {[%emt 0:00:03]} Rd4 {[%emt 0:00:05]} 50. Rf3+ {[%emt 0:00:03]} Ke6 {[%emt 0:00:07]} 51. Re3+ {[%emt 0:00:03]} Kf6 {[%emt 0:00:02]} 52. Rf3+ {[%emt 0:00:02]} Kg6 {[%emt 0:00:01]} 53. Re3 {[%emt 0:00:02]} Kf5 {[%emt 0:00:13]} 54. f3 {[%emt 0:00:02]} Rb4 {[%emt 0:00:03]} 55. Re7 {[%emt 0:00:43]} Rxb3 {[%emt 0:00:06]} 56. Rc7 {[%emt 0:00:02]} Rxd3 {[%emt 0:00:07]} 57. Rxc6 {[%emt 0:00:01]} Rb3 {[%emt 0:00:04]} 58. Rxh6 {[%emt 0:00:02]} c4 {[%emt 0:00:08]} 59. Rc6 {[%emt 0:00:01]} Rb4 {[%emt 0:00:00]} 60. Kf2 {[%emt 0:00:05]} Rxa4 {[%emt 0:00:06]} 61. Rxb6 {[%emt 0:00:01]} Rb4 {[%emt 0:00:02]} 62. Ra6 {[%emt 0:00:06]} a4 {[%emt 0:00:04]} 63. Ke3 {[%emt 0:00:02]} Rb3+ {[%emt 0:00:13]} 64. Kd2 {[%emt 0:00:04]} a3 {[%emt 0:00:06]} 65. Ra4 {[%emt 0:00:02]} Rxf3 {[%emt 0:00:06]} 66. Rxc4 {[%emt 0:00:18]} Rf1 {[%emt 0:00:05]} 67. Rc1 {[%emt 0:00:04]} Rf2+ {[%emt 0:00:02]} 68. Kc3 {[%emt 0:00:13]} Ke4 {[%emt 0:00:09]} 69. Ra1 {[%emt 0:00:02]} Rf3+ {[%emt 0:00:01]} 70. Kb4 {[%emt 0:00:01]} Kd5 {[%emt 0:00:08]} 71. Rxa3 {[%emt 0:00:02]} Rf4+ {[%emt 0:00:01]} 72. Kb3 {[%emt 0:00:02]} Kc5 {[%emt 0:00:06]} 73. Ra5+ {[%emt 0:00:03]} Kb6 {[%emt 0:00:01]} 74. Ra4 {[%emt 0:00:01]} Rf3+ {[%emt 0:00:02]} 75. Kb2 {[%emt 0:00:03]} Kb5 {[%emt 0:00:01]} 76. Rh4 {[%emt 0:00:05]} Rf2+ {[%emt 0:00:06]} 77. Kc3 {[%emt 0:00:02]} Kc5 {[%emt 0:00:01]} 78. Rh5+ {[%emt 0:00:02]} Kd6 {[%emt 0:00:03]} 79. Kd3 {[%emt 0:00:02]} Rf3+ 80. Ke2 {[%emt 0:00:02]} Ra3 {[%emt 0:00:04]} 81. Kd2 {[%emt 0:00:02]} Kc6 {[%emt 0:00:07]} 82. Kc2 {[%emt 0:00:02]} Re3 {[%emt 0:00:03]} 83. Kd2 {[%emt 0:00:02]} Re4 {[%emt 0:00:02]} 84. Kd3 {[%emt 0:00:02]} Rg4 {[%emt 0:00:00]} 85. Kd2 {[%emt 0:00:02]} Rg3 {[%emt 0:00:16]} 86. Kc2 {[%emt 0:00:02]} Rf3 {[%emt 0:00:04]} 87. Kd2 {[%emt 0:00:01]} Ra3 {[%emt 0:00:01]} 88. Kc2 {[%emt 0:00:02]} Kd6 {[%emt 0:00:02]} 89. Kb2 {[%emt 0:00:01]} Rf3 {[%emt 0:00:01]} 90. Kc2 {[%emt 0:00:02]} Ke6 {[%emt 0:00:01]} 91. Kd2 {[%emt 0:00:01]} Kf6 {[%emt 0:00:01]} 92. Ke2 {[%emt 0:00:01]} Ra3 {[%emt 0:00:01]} 93. Kd2 {[%emt 0:00:09]} Kg6 {[%emt 0:00:01]} 94. Rb5 {[%emt 0:00:01]} 1/2-1/2

[Event "3rd FIDE WCCC Rapid U10 2019"]
[Site "Minsk"]
[Date "2019.08.16"]
[Round "1.3"]
[White "Zverev, Lev"]
[Black "Haurushyn, Stsiapan"]
[Result "1-0"]
[ECO "C15"]
[WhiteElo "1881"]
[BlackElo "1086"]
[Annotator "NA"]
[PlyCount "43"]
[EventDate "2019.08.16"]
[EventType "swiss"]
[EventCountry "BLR"]
[SourceTitle "playchess.com"]
[Source "ChessBase"]
[SourceQuality "1"]
[TimeControl "600+5"]

1. e4 {[%emt 0:00:00]} e6 {[%emt 0:00:00]} 2. d4 {[%emt 0:00:00]} d5 {[%emt 0:00:00]} 3. Nc3 {[%emt 0:00:01]} Bb4 {[%emt 0:00:19]} 4. a3 {[%emt 0:00:12]} Bxc3+ {[%emt 0:00:09]} 5. bxc3 {[%emt 0:00:02]} dxe4 {[%emt 0:00:10]} 6. Qg4 {[%emt 0:00:02]} Qf6 {[%emt 0:00:23]} 7. Qxe4 {[%emt 0:00:03]} Ne7 {[%emt 0:00:49]} 8. Bd3 {[%emt 0:00:02]} Ng6 {[%emt 0:00:18]} 9. Nf3 {[%emt 0:00:04]} O-O {[%emt 0:00:02]} 10. h4 {[%emt 0:00:16]} Re8 {[%emt 0:00:46]} 11. h5 {[%emt 0:00:20]} Nf8 {[%emt 0:00:03]} 12. h6 {[%emt 0:02:35]} Ng6 {[%emt 0:00:24]} 13. Ne5 {[%emt 0:01:14]} c6 {[%emt 0:02:16]} 14. Rh5 {[%emt 0:01:34]} Nd7 {[%emt 0:01:34]} 15. Bg5 {[%emt 0:00:19]} Qf5 {[%emt 0:00:05]} 16. Qe3 {[%emt 0:00:02]} Ndxe5 {[%emt 0:00:37]} 17. Bxf5 {[%emt 0:00:09]} exf5 {[%emt 0:00:05]} 18. Kf1 {[%emt 0:01:42]} f6 {[%emt 0:02:44]} 19. Bf4 {[%emt 0:00:37]} Nxf4 {[%emt 0:00:35]} 20. Qxf4 {[%emt 0:00:03]} Ng6 {[%emt 0:00:08]} 21. Qc7 {[%emt 0:00:22]} Be6 {[%emt 0:00:02]} 22. Qxg7# {[%emt 0:00:03]} 1-0

[Event "3rd FIDE WCCC Rapid U10 2019"]
[Site "Minsk"]
[Date "2019.08.16"]
[Round "1.4"]
[White "Vodnik, Val"]
[Black "Zimin, Artur"]
[Result "0-1"]
[ECO "E73"]
[WhiteElo "1158"]
[BlackElo "1672"]
[Annotator "NA"]
[PlyCount "54"]
[EventDate "2019.08.16"]
[EventType "swiss"]
[EventCountry "BLR"]
[SourceTitle "playchess.com"]
[Source "ChessBase"]
[SourceQuality "1"]
[TimeControl "600+5"]

1. d4 Nf6 2. c4 {[%emt 0:00:00]} d6 {[%emt 0:00:00]} 3. Nc3 {[%emt 0:00:01]} g6 {[%emt 0:00:00]} 4. e4 {[%emt 0:00:03]} Bg7 {[%emt 0:00:00]} 5. Be2 {[%emt 0:00:02]} O-O {[%emt 0:00:01]} 6. Be3 {[%emt 0:00:03]} Nfd7 {[%emt 0:00:02]} 7. g4 {[%emt 0:00:05]} Nc6 {[%emt 0:00:02]} 8. f3 {[%emt 0:00:12]} e5 {[%emt 0:00:01]} 9. d5 {[%emt 0:00:01]} Ne7 {[%emt 0:00:01]} 10. Nh3 {[%emt 0:00:03]} f5 {[%emt 0:00:02]} 11. Qd2 {[%emt 0:00:26]} Nf6 {[%emt 0:00:26]} 12. gxf5 {[%emt 0:00:21]} gxf5 {[%emt 0:00:01]} 13. Bh6 {[%emt 0:00:24]} f4 {[%emt 0:00:05]} 14. Bxg7 {[%emt 0:00:31]} Kxg7 {[%emt 0:00:03]} 15. Rg1+ {[%emt 0:00:09]} Kh8 {[%emt 0:00:01]} 16. Nf2 {[%emt 0:00:01]} Bd7 {[%emt 0:00:06]} 17. O-O-O {[%emt 0:00:04]} Qe8 {[%emt 0:00:01]} 18. Bd3 {[%emt 0:00:19]} Qh5 {[%emt 0:00:07]} 19. Be2 {[%emt 0:00:39]} Rg8 {[%emt 0:00:11]} 20. Rh1 {[%emt 0:00:21]} Rg2 {[%emt 0:00:30]} 21. Nd3 {[%emt 0:01:14]} b6 {[%emt 0:00:18]} 22. h4 {[%emt 0:00:29]} Rag8 {[%emt 0:00:42]} 23. Qe1 {[%emt 0:00:29]} Ng6 {[%emt 0:00:44]} 24. Bf1 {[%emt 0:00:14]} Rg3 {[%emt 0:00:07]} 25. Ne2 {[%emt 0:00:06]} Rxf3 {[%emt 0:00:20]} 26. Bg2 {[%emt 0:00:23]} Re3 {[%emt 0:00:07]} 27. Qf1 {[%emt 0:00:56]} Qxe2 {[%emt 0:00:08]} 0-1

[Event "3rd FIDE WCCC Rapid U10 2019"]
[Site "Minsk"]
[Date "2019.08.16"]
[Round "1.5"]
[White "Vetokhin, Savva"]
[Black "Karis, Fredi"]
[Result "1-0"]
[ECO "C40"]
[WhiteElo "2016"]
[BlackElo "1063"]
[Annotator "NA"]
[PlyCount "43"]
[EventDate "2019.08.16"]
[EventType "swiss"]
[EventCountry "BLR"]
[SourceTitle "playchess.com"]
[Source "ChessBase"]
[SourceQuality "1"]
[TimeControl "600+5"]

1. e4 {[%emt 0:00:00]} e5 {[%emt 0:00:00]} 2. Nf3 {[%emt 0:00:00]} d5 {[%emt 0:00:00]} 3. exd5 {[%emt 0:00:19]} e4 {[%emt 0:00:00]} 4. Qe2 {[%emt 0:00:10]} Qe7 {[%emt 0:00:00]} 5. Nd4 {[%emt 0:00:14]} Nf6 {[%emt 0:00:19]} 6. Nc3 {[%emt 0:00:23]} Bg4 {[%emt 0:00:03]} 7. Qb5+ {[%emt 0:00:21]} Nbd7 {[%emt 0:02:16]} 8. Qxb7 {[%emt 0:00:13]} Rb8 {[%emt 0:00:12]} 9. Qxc7 {[%emt 0:00:09]} g6 {[%emt 0:03:02]} 10. Nc6 {[%emt 0:00:24]} Qc5 {[%emt 0:00:14]} 11. b4 {[%emt 0:00:34]} Qb6 {[%emt 0:00:29]} 12. Qxb6 {[%emt 0:00:09]} Rxb6 {[%emt 0:00:03]} 13. h3 {[%emt 0:00:32]} Be6 {[%emt 0:00:17]} 14. dxe6 {[%emt 0:00:05]} Rxc6 {[%emt 0:00:21]} 15. exd7+ {[%emt 0:00:02]} Kxd7 {[%emt 0:00:04]} 16. Bb5 {[%emt 0:00:01]} Kc7 {[%emt 0:00:02]} 17. Bxc6 {[%emt 0:00:01]} Kxc6 {[%emt 0:00:01]} 18. Bb2 {[%emt 0:00:03]} Bg7 {[%emt 0:00:05]} 19. b5+ {[%emt 0:00:04]} Kd6 {[%emt 0:00:05]} 20. O-O {[%emt 0:00:10]} Re8 {[%emt 0:00:21]} 21. Rfe1 {[%emt 0:00:03]} Bh8 {[%emt 0:00:31]} 22. d3 {[%emt 0:00:14]} 1-0

[Event "3rd FIDE WCCC Rapid U10 2019"]
[Site "Minsk"]
[Date "2019.08.16"]
[Round "2.1"]
[White "Rudnev, Andrei"]
[Black "Samunenkov, Ihor"]
[Result "0-1"]
[ECO "B26"]
[WhiteElo "1607"]
[BlackElo "1964"]
[Annotator "NA"]
[PlyCount "92"]
[EventDate "2019.08.16"]
[EventType "swiss"]
[EventCountry "BLR"]
[SourceTitle "playchess.com"]
[Source "ChessBase"]
[SourceQuality "1"]
[TimeControl "600+5"]

1. e4 {[%emt 0:00:00]} c5 {[%emt 0:00:00]} 2. Nc3 {[%emt 0:00:02]} Nc6 {[%emt 0:00:03]} 3. g3 {[%emt 0:00:02]} g6 {[%emt 0:00:01]} 4. Bg2 {[%emt 0:00:01]} Bg7 {[%emt 0:00:02]} 5. d3 {[%emt 0:00:02]} d6 {[%emt 0:00:02]} 6. Be3 {[%emt 0:00:02]} e5 {[%emt 0:00:01]} 7. Qd2 {[%emt 0:00:08]} Nd4 {[%emt 0:00:03]} 8. Nce2 {[%emt 0:00:11] B26: Closed Sicilian: 3 g3, lines with early Be3} (8. Nd5 h6 9. c3 Nc6 10. Ne2 Nge7 11. O-O Nxd5 12. exd5 Ne7 13. f4 exf4 14. Bxf4 g5 15. Be3 O-O 16. d4 {0-1 (70) Short,N (2678)-Mamedov,R (2709) Riadh 2017}) 8... Ne7 {[%emt 0:01:33]} 9. c3 {[%emt 0:00:03]} Ndc6 {[%emt 0:01:09]} 10. Bh6 {[%emt 0:00:04]} O-O {[%emt 0:00:57]} 11. h4 {[%emt 0:00:14]} f6 {[%emt 0:00:36]} 12. Bxg7 {[%emt 0:00:35]} Kxg7 {[%emt 0:00:03]} 13. f4 $146 {[%emt 0:01:10]} ({Predecessor:} 13. h5 g5 14. c4 Be6 15. f3 a6 {0-1 (35) Davy,B (1843)-Stany,G (2385) Sautron 2015}) 13... Bg4 {[%emt 0:00:25]} 14. Bf3 {[%emt 0:01:33]} Qd7 {[%emt 0:01:00]} 15. h5 {[%emt 0:00:28]} Ng8 {[%emt 0:01:23]} 16. Bxg4 {[%emt 0:00:39]} Qxg4 {[%emt 0:00:03]} 17. Rh4 {[%emt 0:00:01]} Qd7 {[%emt 0:00:23]} 18. Nf3 {[%emt 0:00:48]} d5 {[%emt 0:00:26]} 19. Qe3 {[%emt 0:02:12]} d4 {[%emt 0:00:51]} 20. cxd4 {[%emt 0:01:19]} cxd4 {[%emt 0:00:05]} 21. Qd2 {[%emt 0:00:02]} Rac8 $16 {[%emt 0:00:19]} 22. hxg6 {[%emt 0:00:33]} hxg6 {[%emt 0:00:10]} 23. Kf2 {[%emt 0:00:12]} Nge7 {[%emt 0:00:19]} 24. Rah1 {[%emt 0:01:05]} Kf7 {[%emt 0:00:55]} 25. Rh7+ {[%emt 0:00:17]} Ke6 {[%emt 0:00:05]} 26. fxe5 {[%emt 0:00:12]} fxe5 {[%emt 0:00:08]} 27. Qg5 {[%emt 0:00:10]} Kd6 {[%emt 0:00:12]} 28. R1h6 {[%emt 0:00:04]} Qe6 {[%emt 0:00:17]} 29. Kg2 {[%emt 0:00:04]} Qf6 {[%emt 0:00:14]} 30. Qg4 {[%emt 0:00:06]} Qe6 {[%emt 0:00:30]} 31. Qg5 {[%emt 0:00:03]} Rf6 {[%emt 0:00:10]} 32. Rg7 {[%emt 0:00:04]} Rcf8 {[%emt 0:00:04]} 33. Neg1 {[%emt 0:00:03]} Qxa2 {[%emt 0:00:06]} 34. Kh1 {[%emt 0:00:13]} Qxb2 {[%emt 0:00:04]} 35. Nh4 {[%emt 0:00:04]} Qf2 {[%emt 0:00:09]} 36. Nf5+ {[%emt 0:00:05]} Nxf5 {[%emt 0:00:03]} 37. exf5 {[%emt 0:00:02]} Qxf5 {[%emt 0:00:03]} 38. Qd2 {[%emt 0:00:11]} g5 {[%emt 0:00:07]} 39. Rhh7 {[%emt 0:00:03]} R8f7 {[%emt 0:00:04]} 40. Rxf7 {[%emt 0:00:04]} Rxf7 {[%emt 0:00:02]} 41. Rh5 {[%emt 0:00:04]} Rg7 {[%emt 0:00:06]} 42. Kg2 {[%emt 0:00:02]} Qg6 {[%emt 0:00:04]} 43. Rh8 {[%emt 0:00:04]} Rf7 {[%emt 0:00:09]} 44. Qe2 {[%emt 0:00:10]} Nb4 {[%emt 0:00:06]} 45. Nf3 {[%emt 0:00:04]} Nxd3 {[%emt 0:00:04]} 46. Nd2 {[%emt 0:00:06]} Rf2+ {[%emt 0:00:03]} 0-1

[Event "3rd FIDE WCCC Rapid U10 2019"]
[Site "Minsk"]
[Date "2019.08.16"]
[Round "2.2"]
[White "Artyushin, Vladislav"]
[Black "Zverev, Lev"]
[Result "0-1"]
[ECO "D30"]
[WhiteElo "1262"]
[BlackElo "1881"]
[Annotator "NA"]
[PlyCount "55"]
[EventDate "2019.08.16"]
[EventType "swiss"]
[EventCountry "BLR"]
[SourceTitle "playchess.com"]
[Source "ChessBase"]
[SourceQuality "1"]
[TimeControl "600+5"]

1. d4 {[%emt 0:00:00]} d5 {[%emt 0:00:00]} 2. c4 {[%emt 0:00:00]} e6 {[%emt 0:00:00]} 3. Nf3 {[%emt 0:00:00]} c6 {[%emt 0:00:00]} 4. Qc2 {[%emt 0:00:05]} Nf6 {[%emt 0:00:08]} 5. g3 {[%emt 0:00:04]} Be7 {[%emt 0:00:02]} 6. Bg2 {[%emt 0:00:01]} O-O {[%emt 0:00:03]} 7. O-O {[%emt 0:00:03]} b6 {[%emt 0:00:01]} 8. Nbd2 {[%emt 0:00:03]} Bb7 {[%emt 0:00:01]} 9. e4 {[%emt 0:00:03]} Na6 {[%emt 0:00:02]} 10. a3 {[%emt 0:00:21]} c5 {[%emt 0:00:23]} 11. Rd1 {[%emt 0:00:23]} (11. cxd5 $11 {remains equal.} exd5 12. e5) 11... dxe4 {[%emt 0:00:12]} 12. Ng5 {[%emt 0:00:24]} cxd4 {[%emt 0:00:08]} 13. Ndxe4 {[%emt 0:00:09]} Nxe4 {[%emt 0:00:21]} 14. Bxe4 {[%emt 0:03:22]} Bxe4 {[%emt 0:00:04]} 15. Nxe4 {[%emt 0:00:01]} e5 {[%emt 0:00:07]} 16. b4 {[%emt 0:00:39]} Rc8 {[%emt 0:00:16]} 17. Bb2 {[%emt 0:00:26]} f5 {[%emt 0:00:08]} 18. Nd2 {[%emt 0:00:13]} e4 $17 {[%emt 0:00:59]} 19. Nf1 {[%emt 0:01:26]} d3 {[%emt 0:00:07]} 20. Qc1 {[%emt 0:00:18]} Bg5 {[%emt 0:00:10]} 21. Ne3 {[%emt 0:00:28]} f4 {[%emt 0:00:20]} 22. gxf4 {[%emt 0:00:06]} Bxf4 {[%emt 0:00:02]} 23. Qc3 {[%emt 0:00:32]} Rf7 {[%emt 0:01:00]} 24. Ng2 {[%emt 0:00:55]} Bb8 {[%emt 0:01:51]} 25. Re1 {[%emt 0:01:16]} Qc7 {[%emt 0:00:18]} 26. f4 {[%emt 0:00:32]} exf3 {[%emt 0:00:08]} 27. Nf4 {[%emt 0:00:10]} Qxf4 {[%emt 0:00:12]} 28. Kf2 {[%emt 0:00:04]} 0-1

[Event "3rd FIDE WCCC Rapid U10 2019"]
[Site "Minsk"]
[Date "2019.08.16"]
[Round "2.3"]
[White "Zimin, Artur"]
[Black "Frolov, Maxim"]
[Result "0-1"]
[ECO "D01"]
[WhiteElo "1672"]
[BlackElo "1379"]
[Annotator "NA"]
[PlyCount "112"]
[EventDate "2019.08.16"]
[EventType "swiss"]
[EventCountry "BLR"]
[SourceTitle "playchess.com"]
[Source "ChessBase"]
[SourceQuality "1"]
[TimeControl "600+5"]

1. d4 {[%emt 0:00:05]} Nf6 {[%emt 0:00:00]} 2. Nc3 {[%emt 0:00:01]} d5 {[%emt 0:00:00]} 3. Bg5 {[%emt 0:00:01]} c6 {[%emt 0:00:01]} 4. Bxf6 {[%emt 0:00:03]} exf6 {[%emt 0:00:03]} 5. e4 {[%emt 0:00:01]} dxe4 {[%emt 0:00:06]} 6. Nxe4 {[%emt 0:00:01]} Bf5 {[%emt 0:00:01]} 7. Ng3 {[%emt 0:00:01]} Bg6 {[%emt 0:00:05]} 8. Nf3 {[%emt 0:00:04]} Bd6 {[%emt 0:00:03]} 9. Bd3 {[%emt 0:00:07]} Bxd3 {[%emt 0:00:07]} 10. Qxd3 {[%emt 0:00:02]} O-O {[%emt 0:00:03]} 11. O-O-O {[%emt 0:00:03]} Nd7 {[%emt 0:00:08]} 12. Nf5 {[%emt 0:00:38]} Bf4+ {[%emt 0:00:13]} 13. Kb1 {[%emt 0:00:02]} Nb6 {[%emt 0:00:30]} 14. g3 {[%emt 0:00:03]} Bc7 {[%emt 0:00:08]} 15. h4 {[%emt 0:00:16]} Qd7 {[%emt 0:00:06]} 16. h5 {[%emt 0:00:21]} Nd5 {[%emt 0:00:11]} 17. Ne3 {[%emt 0:00:25]} Nxe3 {[%emt 0:00:04]} 18. Qxe3 {[%emt 0:00:02]} Rfe8 {[%emt 0:00:01]} 19. Qd3 {[%emt 0:00:11]} Rad8 {[%emt 0:00:12]} 20. Rde1 {[%emt 0:00:45]} Bb6 {[%emt 0:00:02]} 21. h6 {[%emt 0:00:44]} g6 {[%emt 0:00:17]} 22. c3 {[%emt 0:00:36]} Rxe1+ {[%emt 0:01:11]} 23. Rxe1 {[%emt 0:00:04]} Re8 {[%emt 0:00:02]} 24. Qd2 {[%emt 0:02:25]} Rxe1+ {[%emt 0:00:24]} 25. Qxe1 {[%emt 0:00:21]} Qe6 {[%emt 0:00:01]} 26. Kc2 {[%emt 0:01:57]} Kf8 {[%emt 0:00:16]} 27. Qxe6 {[%emt 0:00:43]} fxe6 {[%emt 0:00:04]} 28. b4 {[%emt 0:00:01]} Ke7 {[%emt 0:00:02]} 29. Kd3 {[%emt 0:00:07]} Bc7 {[%emt 0:00:01]} 30. Ke4 {[%emt 0:00:44]} a5 {[%emt 0:00:12]} 31. a3 {[%emt 0:00:01]} axb4 {[%emt 0:00:11]} 32. axb4 {[%emt 0:00:04]} b5 {[%emt 0:00:16]} 33. Nh4 {[%emt 0:00:59]} g5 {[%emt 0:00:35]} 34. Nf3 {[%emt 0:00:19]} f5+ {[%emt 0:00:35]} 35. Kd3 {[%emt 0:00:12]} Kf6 {[%emt 0:00:03]} 36. Nd2 {[%emt 0:00:06]} g4 {[%emt 0:01:03]} 37. Nb3 {[%emt 0:00:08]} Bb6 {[%emt 0:00:16]} 38. Na5 {[%emt 0:00:04]} e5 {[%emt 0:00:09]} 39. Nxc6 {[%emt 0:00:16]} exd4 {[%emt 0:00:06]} 40. cxd4 {[%emt 0:00:01]} Ke6 41. Ne5 {[%emt 0:00:05]} Kd5 {[%emt 0:00:13]} 42. Nf7 {[%emt 0:00:10]} Bxd4 {[%emt 0:00:08]} 43. Ng5 {[%emt 0:00:06]} Bxf2 {[%emt 0:00:27]} 44. Nxh7 {[%emt 0:00:01]} Bd4 {[%emt 0:00:09]} 45. Nf8 {[%emt 0:00:03]} f4 {[%emt 0:00:10]} 46. Ke2 {[%emt 0:00:15]} fxg3 {[%emt 0:00:22]} 47. Kf1 {[%emt 0:00:01]} Ke4 {[%emt 0:00:11]} 48. Ne6 {[%emt 0:00:06]} Bh8 {[%emt 0:00:14]} 49. Kg2 {[%emt 0:00:05]} Kf5 {[%emt 0:00:01]} 50. Nc7 {[%emt 0:00:02]} Kg6 {[%emt 0:00:04]} 51. Kxg3 {[%emt 0:00:02]} Be5+ {[%emt 0:00:01]} 52. Kxg4 {[%emt 0:00:04]} Bxc7 {[%emt 0:00:01]} 53. h7 {[%emt 0:00:04]} Kxh7 {[%emt 0:00:02]} 54. Kf5 {[%emt 0:00:02]} Bd6 {[%emt 0:00:03]} 55. Ke4 {[%emt 0:00:01]} Bxb4 {[%emt 0:00:01]} 56. Kd5 {[%emt 0:00:00]} Bf8 {[%emt 0:00:02]} 0-1